Workbook

Sheet Доходы
H1: RESPPERSONS&=Заведующий отделом финансов=Жолудева И. &&:Исполнитель Специалист=Комбарова Н.
A2: ОТЧЕТ ОБ ИСПОЛНЕНИИ БЮДЖЕТА | F2: КОДЫ
E3: Форма по ОКУД | F3: 0503117 | H3: C:\117M1.txt
A4: на 01 октября 2015 года | E4: Дата | F4: 01.10.2015 | H4: 01.10.2015
E5: по ОКПО | F5: 04032907 | H5: 117
A6: Наименование финансового органа: | B6: Админстрация муниципального образования "Город Пикалево" Бокситогорского муниципального района Ленинградской области | E6: Глава по БК | F6: 001 | H6: 3
A7: Наименование публично-правового образования: | B7: Бюджет муниципального образования "Город Пикалево" Бокситогорского муниципального района Ленинградской области | E7: по ОКТМО | F7: 41603102
A8: Периодичность: месячная
A9: Единица измерения: руб. | E9: по ОКЕИ | F9: 383 | H9: 1
A10: 1. Доходы бюджета
A11: Наименование показателя | B11: Код строки | C11: Код дохода по бюджетной классификации | D11: Утвержденные бюджетные назначения | E11: Исполнено | F11: Неисполненные назначения
A18: 1 | B18: 2 | C18: 3 | D18: 4 | E18: 5 | F18: 6
A19: Доходы бюджета - всего | B19: 010 | C19: X | D19: 245414629.3 | E19: 157294806.5 | F19: =IF(OR(D19="-",E19=D19),"-",D19-IF(E19="-",0,E19)) -> 88119822.75
A20: в том числе:
A21: НАЛОГОВЫЕ И НЕНАЛОГОВЫЕ ДОХОДЫ | B21: 010 | C21: 000 10000000000000 000 | D21: 117475814.5 | E21: 78339112.32 | F21: =IF(OR(D21="-",E21=D21),"-",D21-IF(E21="-",0,E21)) -> 39136702.15
A22: НАЛОГИ НА ПРИБЫЛЬ, ДОХОДЫ | B22: 010 | C22: 182 10100000000000 000 | D22: 27987200 | E22: 19981244.23 | F22: 8005955.77
A23: Налог на доходы физических лиц | B23: 010 | C23: 182 10102000010000 110 | D23: 27987200 | E23: 19981244.23 | F23: 8005955.77
A24: Налог на доходы физических лиц с доходов, источником которых является налоговый агент, за исключением доходов, в отношении которых исчисление и уплата налога осуществляются в соответствии со статьями 227, 227.1 и 228 Налогового кодекса Российской Федерации | B24: 010 | C24: 182 10102010010000 110 | D24: 27813958.76 | E24: 19848855.05 | F24: 7965103.71
A25: Налог на доходы физических лиц с доходов, источником которых является налоговый агент, за исключением доходов, в отношении которых исчисление и уплата налога осуществляются в соответствии со статьями 227, 227.1 и 228 Налогового кодекса Российской Федерации (сумма платежа (перерасчеты, недоимка и задолженность по соответствующему платежу, в том числе по отмененному)) | B25: 010 | C25: 182 10102010011000 110 | D25: 27813958.76 | E25: 19840820.09 | F25: 7973138.67
A26: Налог на доходы физических лиц с доходов, источником которых является налоговый агент, за исключением доходов, в отношении которых исчисление и уплата налога осуществляются в соответствии со статьями 227, 227.1 и 228 Налогового кодекса Российской Федерации (пени по соответствующему платежу) | B26: 010 | C26: 182 10102010012100 110 | D26: - | E26: 2393.16 | F26: -
A27: Налог на доходы физических лиц с доходов, источником которых является налоговый агент, за исключением доходов, в отношении которых исчисление и уплата налога осуществляются в соответствии со статьями 227, 227.1 и 228 Налогового кодекса Российской Федерации (суммы денежных взысканий (штрафов) по соответствующему платежу согласно законодательству Российской Федерации) | B27: 010 | C27: 182 10102010013000 110 | D27: - | E27: 5641.8 | F27: -
A28: Налог на доходы физических лиц с доходов, полученных от осуществления деятельности физическими лицами, зарегистрированными в качестве индивидуальных предпринимателей, нотариусов, занимающихся частной практикой, адвокатов, учредивших адвокатские кабинеты и других лиц, занимающихся частной практикой в соответствии со статьей 227 Налогового кодекса Российской Федерации | B28: 010 | C28: 182 10102020010000 110 | D28: 78953.56 | E28: 59252.35 | F28: 19701.21
A29: Налог на доходы физических лиц с доходов, полученных от осуществления деятельности физическими лицами, зарегистрированными в качестве индивидуальных предпринимателей, нотариусов, занимающихся частной практикой, адвокатов, учредивших адвокатские кабинеты и других лиц, занимающихся частной практикой в соответствии со статьей 227 Налогового кодекса Российской Федерации (сумма платежа (перерасчеты, недоимка и задолженность по соответствующему платежу, в том числе по отмененному)) | B29: 010 | C29: 182 10102020011000 110 | D29: 78953.56 | E29: 57579.7 | F29: 21373.86
A30: Налог на доходы физических лиц с доходов, полученных от осуществления деятельности физическими лицами, зарегистрированными в качестве индивидуальных предпринимателей, нотариусов, занимающихся частной практикой, адвокатов, учредивших адвокатские кабинеты, и других лиц, занимающихся частной практикой в соответствии со статьей 227 Налогового кодекса Российской Федерации (пени по соответствующему платежу) | B30: 010 | C30: 182 10102020012100 110 | D30: - | E30: -36.48 | F30: -
A31: Налог на доходы физических лиц с доходов, полученных от осуществления деятельности физическими лицами, зарегистрированными в качестве индивидуальных предпринимателей, нотариусов, занимающихся частной практикой, адвокатов, учредивших адвокатские кабинеты и других лиц, занимающихся частной практикой в соответствии со статьей 227 Налогового кодекса Российской Федерации (суммы денежных взысканий (штрафов) по соответствующему платежу согласно законодательству Российской Федерации) | B31: 010 | C31: 182 10102020013000 110 | D31: - | E31: 1709.13 | F31: -
A32: Налог на доходы физических лиц с доходов, полученных физическими лицами в соответствии со статьей 228 Налогового Кодекса Российской Федерации | B32: 010 | C32: 182 10102030010000 110 | D32: 94287.68 | E32: 73136.83 | F32: 21150.85
A33: Налог на доходы физических лиц с доходов, полученных физическими лицами в соответствии со статьей 228 Налогового Кодекса Российской Федерации (сумма платежа (перерасчеты, недоимка и задолженность по соответствующему платежу, в том числе по отмененному)) | B33: 010 | C33: 182 10102030011000 110 | D33: 94287.68 | E33: 63446.83 | F33: 30840.85
A34: Налог на доходы физических лиц с доходов, полученных физическими лицами в соответствии со статьей 228 Налогового кодекса Российской Федерации (пени по соответствующему платежу) | B34: 010 | C34: 182 10102030012100 110 | D34: - | E34: 5896.36 | F34: -
A35: Налог на доходы физических лиц с доходов, полученных физическими лицами в соответствии со статьей 228 Налогового Кодекса Российской Федерации (суммы денежных взысканий (штрафов) по соответствующему платежу согласно законодательству Российской Федерации) | B35: 010 | C35: 182 10102030013000 110 | D35: - | E35: 3793.64 | F35: -
A36: НАЛОГИ НА ТОВАРЫ (РАБОТЫ, УСЛУГИ), РЕАЛИЗУЕМЫЕ НА ТЕРРИТОРИИ РОССИЙСКОЙ ФЕДЕРАЦИИ | B36: 010 | C36: 100 10300000000000 000 | D36: 1656134.4 | E36: 1166549.53 | F36: 489584.87
A37: Акцизы по подакцизным товарам (продукции), производимым на территории Российской Федерации | B37: 010 | C37: 100 10302000010000 110 | D37: 1656134.4 | E37: 1166549.53 | F37: 489584.87
A38: Доходы от уплаты акцизов на дизельное топливо, зачисляемые в консолидированные бюджеты субъектов Российской Федерации | B38: 010 | C38: 100 10302230010000 110 | D38: 507034.4 | E38: 400357.2 | F38: 106677.2
A39: Доходы от уплаты акцизов на моторные масла для дизельных и (или) карбюраторных (инжекторных) двигателей, зачисляемые в консолидированные бюджеты субъектов Российской Федерации | B39: 010 | C39: 100 10302240010000 110 | D39: 20000 | E39: 10872.41 | F39: 9127.59
A40: Доходы от уплаты акцизов на автомобильный бензин, производимый на территории Российской Федерации, зачисляемые в консолидированные бюджеты субъектов Российской Федерации | B40: 010 | C40: 100 10302250010000 110 | D40: 1110000 | E40: 803234.47 | F40: 306765.53
A41: Доходы от уплаты акцизов на прямогонный бензин, производимый на территории Российской Федерации, зачисляемые в консолидированные бюджеты субъектов Российской Федерации | B41: 010 | C41: 100 10302260010000 110 | D41: 19100 | E41: -47914.55 | F41: 67014.55
A42: НАЛОГИ НА СОВОКУПНЫЙ ДОХОД | B42: 010 | C42: 182 10500000000000 000 | D42: 24858 | E42: 24858 | F42: -
A43: Единый сельскохозяйственный налог | B43: 010 | C43: 182 10503000010000 110 | D43: 24858 | E43: 24858 | F43: -
A44: Единый сельскохозяйственный налог | B44: 010 | C44: 182 10503010010000 110 | D44: 24858 | E44: 24858 | F44: -
A45: Единый сельскохозяйственный налог (сумма платежа (перерасчеты, недоимка и задолженность по соответствующему платежу, в том числе по отмененному)) | B45: 010 | C45: 182 10503010011000 110 | D45: 24858 | E45: 24858 | F45: -
A46: НАЛОГИ НА ИМУЩЕСТВО | B46: 010 | C46: 182 10600000000000 000 | D46: 42196700 | E46: 27690659.59 | F46: 14506040.41
A47: Налог на имущество физических лиц | B47: 010 | C47: 182 10601000000000 110 | D47: 1309700 | E47: 801214.71 | F47: 508485.29
A48: Налог на имущество физических лиц, взимаемый по ставкам, применяемым к объектам налогообложения, расположенным в границах городских поселений | B48: 010 | C48: 182 10601030130000 110 | D48: 1309700 | E48: 801214.71 | F48: 508485.29
A49: Налог на имущество физических лиц, взимаемый по ставкам, применяемым к объектам налогообложения, расположенным в границах городских поселений (сумма платежа (перерасчеты, недоимка и задолженность по соответствующему платежу, в том числе по отмененному) | B49: 010 | C49: 182 10601030131000 110 | D49: 1309700 | E49: 793529.84 | F49: 516170.16
A50: Налог на имущество физических лиц, взимаемый по ставкам, применяемым к объектам налогообложения, расположенным в границах городских поселений (пени по соответствующему платежу) | B50: 010 | C50: 182 10601030132100 110 | D50: - | E50: 7684.87 | F50: -
A51: Транспортный налог | B51: 010 | C51: 182 10604000020000 110 | D51: 11356000 | E51: 8263697.89 | F51: 3092302.11
A52: Транспортный налог с организаций | B52: 010 | C52: 182 10604011020000 110 | D52: 2800000 | E52: 1722994.34 | F52: 1077005.66
A53: Транспортный налог с организаций (сумма платежа (перерасчеты, недоимка и задолженность по соответствующему платежу, в том числе по отмененному)) | B53: 010 | C53: 182 10604011021000 110 | D53: 2800000 | E53: 1718293.05 | F53: =IF(OR(D53="-",E53=D53),"-",D53-IF(E53="-",0,E53)) -> 1081706.95
A54: Транспортный налог с организаций (пени по соответствующему платежу) | B54: 010 | C54: 182 10604011022100 110 | D54: - | E54: 4117.19 | F54: -
A55: Транспортный налог с организаций (суммы денежных взысканий (штрафов) по соответствующему платежу согласно законодательству Российской Федерации) | B55: 010 | C55: 182 10604011023000 110 | D55: - | E55: 584.1 | F55: -
A56: Транспортный налог с физических лиц | B56: 010 | C56: 182 10604012020000 110 | D56: 8556000 | E56: 6540703.55 | F56: 2015296.45
A57: Транспортный налог с физических лиц (сумма платежа (перерасчеты, недоимка и задолженность по соответствующему платежу, в том числе по отмененному)) | B57: 010 | C57: 182 10604012021000 110 | D57: 8556000 | E57: 6435839.69 | F57: 2120160.31
A58: Транспортный налог с физических лиц (пени по соответствующему платежу) | B58: 010 | C58: 182 10604012022100 110 | D58: - | E58: 104714.82 | F58: -
A59: Транспортный налог с физических лиц (проценты по соответствующему платежу) | B59: 010 | C59: 182 10604012022200 110 | D59: - | E59: 112.53 | F59: -
A60: Транспортный налог с физических лиц (прочие поступления) | B60: 010 | C60: 182 10604012024000 110 | D60: - | E60: 36.51 | F60: -
A61: Земельный налог | B61: 010 | C61: 182 10606000000000 110 | D61: 29531000 | E61: 18625746.99 | F61: 10905253.01
A62: Земельный налог с организаций | B62: 010 | C62: 182 10606030030000 110 | D62: 28861000 | E62: 17667746.21 | F62: 11193253.79
A63: Земельный налог с организаций, обладающих земельным участком, расположенным в границах городских поселений | B63: 010 | C63: 182 10606033130000 110 | D63: 28861000 | E63: 17667746.21 | F63: 11193253.79
A64: Земельный налог с физических лиц | B64: 010 | C64: 182 10606040000000 110 | D64: 670000 | E64: 958000.78 | F64: -288000.78
A65: Земельный налог с физических лиц, обладающих земельным участком, расположенным в границах городских поселений | B65: 010 | C65: 182 10606043130000 110 | D65: 670000 | E65: 958000.78 | F65: -288000.78
A66: ГОСУДАРСТВЕННАЯ ПОШЛИНА | B66: 010 | C66: 001 10800000000000 000 | D66: 63400 | E66: 41600 | F66: 21800
A67: Государственная пошлина за государственную регистрацию, а также за совершение прочих юридически значимых действий | B67: 010 | C67: 001 10807000010000 110 | D67: 63400 | E67: 41600 | F67: 21800
A68: Государственная пошлина за выдачу специального разрешения на движение по автомобильным дорогам транспортных средств, осуществляющих перевозки опасных, тяжеловесных и (или) крупногабаритных грузов | B68: 010 | C68: 001 10807170010000 110 | D68: 63400 | E68: 41600 | F68: 21800
A69: Государственная пошлина за выдачу органом местного самоуправления поселения специального разрешения на движение по автомобильным дорогам транспортных средств, осуществляющих перевозки опасных, тяжеловесных и (или) крупногабаритных грузов, зачисляемая в бюджеты поселений | B69: 010 | C69: 001 10807175010000 110 | D69: 63400 | E69: 41600 | F69: 21800
A70: ДОХОДЫ ОТ ИСПОЛЬЗОВАНИЯ ИМУЩЕСТВА, НАХОДЯЩЕГОСЯ В ГОСУДАРСТВЕННОЙ И МУНИЦИПАЛЬНОЙ СОБСТВЕННОСТИ | B70: 010 | C70: 001 11100000000000 000 | D70: 37491181.86 | E70: 21982730.42 | F70: 15508451.44
A71: Доходы, получаемые в виде арендной либо иной платы за передачу в возмездное пользование государственного и муниципального имущества (за исключением имущества бюджетных и автономных учреждений, а также имущества государственных и муниципальных унитарных предприятий, в том числе казенных) | B71: 010 | C71: 001 11105000000000 120 | D71: 30310181.86 | E71: 20268208.12 | F71: 10041973.74
A72: Доходы, получаемые в виде арендной платы за земельные участки, государственная собственность на которые не разграничена, а также средства от продажи права на заключение договоров аренды указанных земельных участков | B72: 010 | C72: 001 11105010000000 120 | D72: 17444300 | E72: 11842737.83 | F72: 5601562.17
A73: Доходы, получаемые в виде арендной платы за земельные участки, государственная собственность на которые не разграничена и которые расположены в границах городских поселений, а также средства от продажи права на заключение договоров аренды указанных земельных участков | B73: 010 | C73: 001 11105013130000 120 | D73: 17444300 | E73: 11842737.83 | F73: 5601562.17
A74: Доходы, получаемые в виде арендной платы за земли после разграничения государственной собственности на землю, а также средства от продажи права на заключение договоров аренды указанных земельных участков (за исключением земельных участков бюджетных и автономных учреждений) | B74: 010 | C74: 001 11105020000000 120 | D74: 1800000 | E74: 1411918.87 | F74: 388081.13
A75: Доходы, получаемые в виде арендной платы, а также средства от продажи права на заключение договоров аренды за земли, находящиеся в собственности городских поселений (за исключением земельных участков муниципальных бюджетных и автономных учреждений) | B75: 010 | C75: 001 11105025130000 120 | D75: 1800000 | E75: 1411918.87 | F75: 388081.13
A76: Доходы от сдачи в аренду имущества, находящегося в оперативном управлении органов государственной власти, органов местного самоуправления, государственных внебюджетных фондов и созданных ими учреждений (за исключением имущества бюджетных и автономных учреждений) | B76: 010 | C76: 001 11105030000000 120 | D76: 65881.86 | E76: 42971.76 | F76: 22910.1
A77: Доходы от сдачи в аренду имущества, находящегося в оперативном управлении органов управления городских поселений и созданных ими учреждений (за исключением имущества муниципальных бюджетных и автономных учреждений) | B77: 010 | C77: 001 11105035130000 120 | D77: 65881.86 | E77: 42971.76 | F77: 22910.1
A78: Доходы от сдачи в аренду имущества, составляющего государственную (муниципальную) казну (за исключением земельных участков) | B78: 010 | C78: 001 11105070000000 120 | D78: 11000000 | E78: 6970579.66 | F78: 4029420.34
A79: Доходы от сдачи в аренду имущества, составляющего казну городских поселений (за исключением земельных участков) | B79: 010 | C79: 001 11105075130000 120 | D79: 11000000 | E79: 6970579.66 | F79: 4029420.34
A80: Платежи от государственных и муниципальных унитарных предприятий | B80: 010 | C80: 001 11107000000000 120 | D80: 5001000 | E80: - | F80: 5001000
A81: Доходы от перечисления части прибыли государственных и муниципальных унитарных предприятий, остающейся после уплаты налогов и обязательных платежей | B81: 010 | C81: 001 11107010000000 120 | D81: 5001000 | E81: - | F81: 5001000
A82: Доходы от перечисления части прибыли, остающейся после уплаты налогов и иных обязательных платежей муниципальных унитарных предприятий, созданных городскими поселениями | B82: 010 | C82: 001 11107015130000 120 | D82: 5001000 | E82: - | F82: 5001000
A83: Прочие доходы от использования имущества и прав, находящихся в государственной и муниципальной собственности (за исключением имущества бюджетных и автономных учреждений, а также имущества государственных и муниципальных унитарных предприятий, в том числе казенных) | B83: 010 | C83: 001 11109000000000 120 | D83: 2180000 | E83: 1714522.3 | F83: 465477.7
A84: Прочие поступления от использования имущества, находящегося в государственной и муниципальной собственности (за исключением имущества бюджетных и автономных учреждений, а также имущества государственных и муниципальных унитарных предприятий, в том числе казенных) | B84: 010 | C84: 001 11109040000000 120 | D84: 2180000 | E84: 1714522.3 | F84: 465477.7
A85: Прочие поступления от использования имущества, находящегося в собственности городских поселений (за исключением имущества муниципальных бюджетных и автономных учреждений, а также имущества муниципальных унитарных предприятий, в том числе казенных) | B85: 010 | C85: 001 11109045130000 120 | D85: 2180000 | E85: 1714522.3 | F85: =IF(OR(D85="-",E85=D85),"-",D85-IF(E85="-",0,E85)) -> 465477.7
A86: ДОХОДЫ ОТ ОКАЗАНИЯ ПЛАТНЫХ УСЛУГ (РАБОТ) И КОМПЕНСАЦИИ ЗАТРАТ ГОСУДАРСТВА | B86: 010 | C86: 001 11300000000000 000 | D86: 156628.69 | E86: 142201.72 | F86: 14426.97
A87: Доходы от оказания платных услуг (работ) | B87: 010 | C87: 001 11301000000000 130 | D87: 156628.69 | E87: 142201.72 | F87: 14426.97
A88: Прочие доходы от оказания платных услуг (работ) | B88: 010 | C88: 001 11301990000000 130 | D88: 156628.69 | E88: 142201.72 | F88: 14426.97
A89: Прочие доходы от оказания платных услуг (работ) получателями средств бюджетов городских поселений | B89: 010 | C89: 001 11301995130000 130 | D89: 156628.69 | E89: 142201.72 | F89: 14426.97
A90: ДОХОДЫ ОТ ПРОДАЖИ МАТЕРИАЛЬНЫХ И НЕМАТЕРИАЛЬНЫХ АКТИВОВ | B90: 010 | C90: 001 11400000000000 000 | D90: 7431975 | E90: 6985901.44 | F90: 446073.56
A91: Доходы от реализации имущества, находящегося в государственной и муниципальной собственности (за исключением имущества бюджетных и автономных учреждений, а также имущества государственных и муниципальных унитарных предприятий, в том числе казенных) | B91: 010 | C91: 001 11402000000000 000 | D91: 4167475 | E91: 3755352.14 | F91: 412122.86
A92: Доходы от реализации имущества, находящегося в собственности городских поселений (за исключением движимого имущества муниципальных бюджетных и автономных учреждений, а также имущества муниципальных унитарных предприятий, в том числе казенных), в части реализации основных средств по указанному имуществу | B92: 010 | C92: 001 11402050130000 410 | D92: 4167475 | E92: 3755352.14 | F92: 412122.86
A93: Доходы от реализации иного имущества, находящегося в собственности городских поселений (за исключением имущества муниципальных бюджетных и автономных учреждений, а также имущества муниципальных унитарных предприятий, в том числе казенных), в части реализации основных средств по указанному имуществу | B93: 010 | C93: 001 11402053130000 410 | D93: 4167475 | E93: 3755352.14 | F93: 412122.86
A94: Доходы от продажи земельных участков, находящихся в государственной и муниципальной собственности (за исключением земельных участков бюджетных и автономных учреждений) | B94: 010 | C94: 001 11406000000000 430 | D94: 3264500 | E94: 3230549.3 | F94: 33950.7
A95: Доходы от продажи земельных участков, государственная собственность на которые не разграничена | B95: 010 | C95: 001 11406010000000 430 | D95: 3264500 | E95: 3230549.3 | F95: 33950.7
A96: Доходы от продажи земельных участков, государственная собственность на которые не разграничена и которые расположены в границах городских поселений | B96: 010 | C96: 001 11406013130000 430 | D96: 3264500 | E96: 3230549.3 | F96: 33950.7
A97: ШТРАФЫ, САНКЦИИ, ВОЗМЕЩЕНИЕ УЩЕРБА | B97: 010 | C97: 001 11600000000000 000 | D97: 359505.42 | E97: 223759.83 | F97: 135745.59
A98: Денежные взыскания (штрафы) за нарушение законодательства Российской Федерации о размещении заказов на поставки товаров, выполнение работ, оказание услуг | B98: 010 | C98: 001 11633000000000 140 | D98: 67505.42 | E98: 67505.42 | F98: -
A99: Денежные взыскания (штрафы) за нарушение законодательства Российской Федерации о контрактной системе в сфере закупок товаров, работ, услуг для обеспечения государственных и муниципальных нужд для нужд городских поселений | B99: 010 | C99: 001 11633050130000 140 | D99: 67505.42 | E99: 67505.42 | F99: -
A100: Поступления сумм в возмещение вреда, причиняемого автомобильным дорогам транспортными средствами, осуществляющими перевозки тяжеловесных и (или) крупногабаритных грузов | B100: 010 | C100: 001 11637000000000 140 | D100: 92000 | E100: 73372.78 | F100: 18627.22
A101: Поступления сумм в возмещение вреда, причиняемого автомобильным дорогам местного значения транспортными средствами, осуществляющими перевозки тяжеловесных и (или) крупногабаритных грузов, зачисляемые в бюджеты городских поселений | B101: 010 | C101: 001 11637040130000 140 | D101: 92000 | E101: 73372.78 | F101: 18627.22
A102: Прочие поступления от денежных взысканий (штрафов) и иных сумм в возмещение ущерба | B102: 010 | C102: 001 11690000000000 140 | D102: 200000 | E102: 82881.63 | F102: 117118.37
A103: Прочие поступления от денежных взысканий (штрафов) и иных сумм в возмещение ущерба, зачисляемые в бюджеты городских поселений | B103: 010 | C103: 001 11690050130000 140 | D103: 200000 | E103: 82881.63 | F103: 117118.37
A104: ПРОЧИЕ НЕНАЛОГОВЫЕ ДОХОДЫ | B104: 010 | C104: 001 11700000000000 000 | D104: 108231.1 | E104: 99607.56 | F104: 8623.54
A105: Невыясненные поступления | B105: 010 | C105: 001 11701000000000 180 | D105: - | E105: -8623.54 | F105: -
A106: Невыясненные поступления, зачисляемые в бюджеты городских поселений | B106: 010 | C106: 001 11701050130000 180 | D106: - | E106: -8623.54 | F106: -
A107: Прочие неналоговые доходы | B107: 010 | C107: 001 11705000000000 180 | D107: 108231.1 | E107: 108231.1 | F107: -
A108: Прочие неналоговые доходы бюджетов городских поселений | B108: 010 | C108: 001 11705050130000 180 | D108: 108231.1 | E108: 108231.1 | F108: -
A109: БЕЗВОЗМЕЗДНЫЕ ПОСТУПЛЕНИЯ | B109: 010 | C109: 001 20000000000000 000 | D109: 127938814.8 | E109: 78955694.22 | F109: 48983120.6
A110: БЕЗВОЗМЕЗДНЫЕ ПОСТУПЛЕНИЯ ОТ ДРУГИХ БЮДЖЕТОВ БЮДЖЕТНОЙ СИСТЕМЫ РОССИЙСКОЙ ФЕДЕРАЦИИ | B110: 010 | C110: 001 20200000000000 000 | D110: 127938814.8 | E110: 88523625.41 | F110: 39415189.41
A111: Дотации бюджетам субъектов Российской Федерации и муниципальных образований | B111: 010 | C111: 001 20201000000000 151 | D111: 6304300 | E111: 5783670 | F111: 520630
A112: Дотации на выравнивание бюджетной обеспеченности | B112: 010 | C112: 001 20201001000000 151 | D112: 5206300 | E112: 4685670 | F112: 520630
A113: Дотации бюджетам городских поселений на выравнивание бюджетной обеспеченности | B113: 010 | C113: 001 20201001130000 151 | D113: 5206300 | E113: 4685670 | F113: 520630
A114: Дотации бюджетам на поддержку мер по обеспечению сбалансированности бюджетов | B114: 010 | C114: 001 20201003000000 151 | D114: 1098000 | E114: 1098000 | F114: -
A115: Дотации бюджетам городских поселений на поддержку мер по обеспечению сбалансированности бюджетов | B115: 010 | C115: 001 20201003130000 151 | D115: 1098000 | E115: 1098000 | F115: -
A116: Субсидии бюджетам бюджетной системы Российской Федерации (межбюджетные субсидии) | B116: 010 | C116: 001 20202000000000 151 | D116: 91878334.09 | E116: 66946909.09 | F116: 24931425
A117: Субсидии бюджетам на обеспечение жильем молодых семей | B117: 010 | C117: 001 20202008000000 151 | D117: 1243563 | E117: 1243563 | F117: =IF(OR(D117="-",E117=D117),"-",D117-IF(E117="-",0,E117)) -> -
A118: Субсидии бюджетам городских поселений на обеспечение жильем молодых семей | B118: 010 | C118: 001 20202008130000 151 | D118: 1243563 | E118: 1243563 | F118: -
A119: Субсидии бюджетам на реализацию федеральных целевых программ | B119: 010 | C119: 001 20202051000000 151 | D119: 430000 | E119: 430000 | F119: -
A120: Субсидии бюджетам городских поселений на реализацию федеральных целевых программ | B120: 010 | C120: 001 20202051130000 151 | D120: 430000 | E120: 430000 | F120: -
A121: Субсидии бюджетам на софинансирование капитальных вложений в объекты государственной (муниципальной) собственности | B121: 010 | C121: 001 20202077000000 151 | D121: 20000000 | E121: - | F121: 20000000
A122: Субсидии бюджетам городских поселений на софинансирование капитальных вложений в объекты муниципальной собственности | B122: 010 | C122: 001 20202077130000 151 | D122: 20000000 | E122: - | F122: 20000000
A123: Субсидии бюджетам муниципальных образований на обеспечение мероприятий по капитальному ремонту многоквартирных домов, переселению граждан из аварийного жилищного фонда и модернизации систем коммунальной инфраструктуры за счет средств бюджетов | B123: 010 | C123: 001 20202089000000 151 | D123: 46962489.77 | E123: 46962489.77 | F123: -
A124: Субсидии бюджетам городских поселений на обеспечение мероприятий по капитальному ремонту многоквартирных домов, переселению граждан из аварийного жилищного фонда и модернизации систем коммунальной инфраструктуры за счет средств бюджетов | B124: 010 | C124: 001 20202089130000 151 | D124: 46962489.77 | E124: 46962489.77 | F124: -
A125: Субсидии бюджетам городских поселений на обеспечение мероприятий по переселению граждан из аварийного жилищного фонда за счет средств бюджетов | B125: 010 | C125: 001 20202089130002 151 | D125: 46962489.77 | E125: 46962489.77 | F125: -
A126: Субсидии бюджетам на осуществление дорожной деятельности в отношении автомобильных дорог общего пользования, а также капитального ремонта и ремонта дворовых территорий многоквартирных домов, проездов к дворовым территориям многоквартирных домов населенных пунктов | B126: 010 | C126: 001 20202216000000 151 | D126: 2099536.32 | E126: 2099536.32 | F126: -
A127: Субсидии бюджетам городских поселений на осуществление дорожной деятельности в отношении автомобильных дорог общего пользования, а также капитального ремонта и ремонта дворовых территорий многоквартирных домов, проездов к дворовым территориям многоквартирных домов населенных пунктов | B127: 010 | C127: 001 20202216130000 151 | D127: 2099536.32 | E127: 2099536.32 | F127: -
A128: Прочие субсидии | B128: 010 | C128: 001 20202999000000 151 | D128: 21142745 | E128: 16211320 | F128: 4931425
A129: Прочие субсидии бюджетам городских поселений | B129: 010 | C129: 001 20202999130000 151 | D129: 21142745 | E129: 16211320 | F129: 4931425
A130: Субвенции бюджетам субъектов Российской Федерации и муниципальных образований | B130: 010 | C130: 001 20203000000000 151 | D130: 2044600 | E130: 1763800 | F130: 280800
A131: Субвенции бюджетам на осуществление первичного воинского учета на территориях, где отсутствуют военные комиссариаты | B131: 010 | C131: 001 20203015000000 151 | D131: 921400 | E131: 921400 | F131: -
A132: Субвенции бюджетам городских поселений на осуществление первичного воинского учета на территориях, где отсутствуют военные комиссариаты | B132: 010 | C132: 001 20203015130000 151 | D132: 921400 | E132: 921400 | F132: -
A133: Субвенции местным бюджетам на выполнение передаваемых полномочий субъектов Российской Федерации | B133: 010 | C133: 001 20203024000000 151 | D133: 1123200 | E133: 842400 | F133: 280800
A134: Субвенции бюджетам городских поселений на выполнение передаваемых полномочий субъектов Российской Федерации | B134: 010 | C134: 001 20203024130000 151 | D134: 1123200 | E134: 842400 | F134: 280800
A135: Иные межбюджетные трансферты | B135: 010 | C135: 001 20204000000000 151 | D135: 27711580.73 | E135: 14029246.32 | F135: 13682334.41
A136: Прочие межбюджетные трансферты, передаваемые бюджетам | B136: 010 | C136: 001 20204999000000 151 | D136: 27711580.73 | E136: 14029246.32 | F136: 13682334.41
A137: Прочие межбюджетные трансферты, передаваемые бюджетам городских поселений | B137: 010 | C137: 001 20204999130000 151 | D137: 27711580.73 | E137: 14029246.32 | F137: 13682334.41
A138: ВОЗВРАТ ОСТАТКОВ СУБСИДИЙ, СУБВЕНЦИЙ И ИНЫХ МЕЖБЮДЖЕТНЫХ ТРАНСФЕРТОВ, ИМЕЮЩИХ ЦЕЛЕВОЕ НАЗНАЧЕНИЕ, ПРОШЛЫХ ЛЕТ | B138: 010 | C138: 001 21900000000000 000 | D138: - | E138: -9567931.19 | F138: -
A139: Возврат остатков субсидий, субвенций и иных межбюджетных трансфертов, имеющих целевое назначение, прошлых лет из бюджетов городских поселений | B139: 010 | C139: 001 21905000130000 151 | D139: - | E139: -9567931.19 | F139: -

Sheet Расходы
A2: 2. Расходы бюджета | F2: Форма 0503117 с.2
A4: Наименование показателя | B4: Код строки | C4: Код расхода по бюджетной классификации | D4: Утвержденные бюджетные назначения | E4: Исполнено | F4: Неисполненные назначения
A12: 1 | B12: 2 | C12: 3 | D12: 4 | E12: 5 | F12: 6
A13: Расходы бюджета - всего | B13: 200 | C13: x | D13: 307650511.5 | E13: 156130480.2 | F13: =IF(OR(D13="-",E13=D13),"-",D13-IF(E13="-",0,E13)) -> 151520031.3
A14: в том числе:
A15: НЕ УКАЗАНО | B15: 200 | C15: 000 0000 0000000 000 000 | D15: 307650511.5 | E15: 156130480.2 | F15: =IF(OR(D15="-",E15=D15),"-",D15-IF(E15="-",0,E15)) -> 151520031.3
A16: Администрация муниципального образования "Город Пикалево" Бокситогорского района Ленинградской области | B16: 200 | C16: 001 0000 0000000 000 000 | D16: 307650511.5 | E16: 156130480.2 | F16: 151520031.3
A17: ОБЩЕГОСУДАРСТВЕННЫЕ ВОПРОСЫ | B17: 200 | C17: 001 0100 0000000 000 000 | D17: 46378030.27 | E17: 27975785.77 | F17: 18402244.5
A18: Функционирование законодательных (представительных) органов государственной власти и представительных органов муниципальных образований | B18: 200 | C18: 001 0103 0000000 000 000 | D18: 530178 | E18: 349080 | F18: 181098
A19: Обеспечение деятельности Совета депутатов | B19: 200 | C19: 001 0103 Г110000 000 000 | D19: 488178 | E19: 346580 | F19: 141598
A20: Расходы на обеспечение функций органов местного самоуправления в рамках обеспечения деятельности Совета депутатов | B20: 200 | C20: 001 0103 Г11Г015 000 000 | D20: 28471 | E20: 1800 | F20: 26671
A21: Иные выплаты персоналу государственных (муниципальных) органов, за исключением фонда оплаты труда | B21: 200 | C21: 001 0103 Г11Г015 122 000 | D21: 26111 | E21: 200 | F21: 25911
A22: Расходы | B22: 200 | C22: 001 0103 Г11Г015 122 200 | D22: 26111 | E22: 200 | F22: 25911
A23: Оплата труда и начисления на выплаты по оплате труда | B23: 200 | C23: 001 0103 Г11Г015 122 210 | D23: 20048 | E23: 200 | F23: 19848
A24: Прочие выплаты | B24: 200 | C24: 001 0103 Г11Г015 122 212 | D24: 20048 | E24: 200 | F24: 19848
A25: Оплата работ, услуг | B25: 200 | C25: 001 0103 Г11Г015 122 220 | D25: 6063 | E25: - | F25: 6063
A26: Транспортные услуги | B26: 200 | C26: 001 0103 Г11Г015 122 222 | D26: 3063 | E26: - | F26: 3063
A27: Прочие работы, услуги | B27: 200 | C27: 001 0103 Г11Г015 122 226 | D27: 3000 | E27: - | F27: 3000
A28: Закупка товаров, работ, услуг в сфере информационно-коммуникационных технологий | B28: 200 | C28: 001 0103 Г11Г015 242 000 | D28: 2360 | E28: 1600 | F28: 760
A29: Расходы | B29: 200 | C29: 001 0103 Г11Г015 242 200 | D29: 2360 | E29: 1600 | F29: 760
A30: Оплата работ, услуг | B30: 200 | C30: 001 0103 Г11Г015 242 220 | D30: 2360 | E30: 1600 | F30: 760
A31: Прочие работы, услуги | B31: 200 | C31: 001 0103 Г11Г015 242 226 | D31: 2360 | E31: 1600 | F31: 760
A32: Межбюджетные трансферты бюджетам муниципальных районов из бюджетов поселений на исполнение полномочий по осуществлению внешнего муниципального финансового контроля в рамках обеспечения деятельности Совета депутатов | B32: 200 | C32: 001 0103 Г11П703 000 000 | D32: 459707 | E32: 344780 | F32: 114927
A33: Иные межбюджетные трансферты | B33: 200 | C33: 001 0103 Г11П703 540 000 | D33: 459707 | E33: 344780 | F33: 114927
A34: Расходы | B34: 200 | C34: 001 0103 Г11П703 540 200 | D34: 459707 | E34: 344780 | F34: 114927
A35: Безвозмездные перечисления бюджетам | B35: 200 | C35: 001 0103 Г11П703 540 250 | D35: 459707 | E35: 344780 | F35: 114927
A36: Перечисления другим бюджетам бюджетной системы Российской Федерации | B36: 200 | C36: 001 0103 Г11П703 540 251 | D36: 459707 | E36: 344780 | F36: 114927
A37: Непрограммные расходы органов местного самоуправления по решению общегосударственных вопросов | B37: 200 | C37: 001 0103 Г210000 000 000 | D37: 42000 | E37: 2500 | F37: 39500
A38: Премирование и награждение юридических и физических лиц по решению совета депутатов МО "Город Пикалево" вне системы оплаты труда в рамках непрограммных расходов органов местного самоуправления по решению общегосударственных вопросов | B38: 200 | C38: 001 0103 Г21Г301 000 000 | D38: 42000 | E38: 2500 | F38: 39500
A39: Публичные нормативные выплаты гражданам несоциального характера | B39: 200 | C39: 001 0103 Г21Г301 330 000 | D39: 42000 | E39: 2500 | F39: 39500
A40: Расходы | B40: 200 | C40: 001 0103 Г21Г301 330 200 | D40: 42000 | E40: 2500 | F40: 39500
A41: Прочие расходы | B41: 200 | C41: 001 0103 Г21Г301 330 290 | D41: 42000 | E41: 2500 | F41: 39500
A42: Функционирование Правительства Российской Федерации, высших исполнительных органов государственной власти субъектов Российской Федерации, местных администраций | B42: 200 | C42: 001 0104 0000000 000 000 | D42: 21801755.08 | E42: 13875734.1 | F42: 7926020.98
A43: Обеспечение деятельности главы администрации | B43: 200 | C43: 001 0104 Г120000 000 000 | D43: 1565225 | E43: 984571.36 | F43: 580653.64
A44: Расходы на выплаты по оплате труда работников органов местного самоуправления в рамках обеспечения деятельности главы администрации | B44: 200 | C44: 001 0104 Г12Г014 000 000 | D44: 1533225 | E44: 978171.36 | F44: 555053.64
A45: Фонд оплаты труда государственных (муниципальных) органов и взносы по обязательному социальному страхованию | B45: 200 | C45: 001 0104 Г12Г014 121 000 | D45: 1533225 | E45: 978171.36 | F45: 555053.64
A46: Расходы | B46: 200 | C46: 001 0104 Г12Г014 121 200 | D46: 1533225 | E46: 978171.36 | F46: 555053.64
A47: Оплата труда и начисления на выплаты по оплате труда | B47: 200 | C47: 001 0104 Г12Г014 121 210 | D47: 1533225 | E47: 978171.36 | F47: 555053.64
A48: Заработная плата | B48: 200 | C48: 001 0104 Г12Г014 121 211 | D48: 1177592 | E48: 778938.27 | F48: 398653.73
A49: Начисления на выплаты по оплате труда | B49: 200 | C49: 001 0104 Г12Г014 121 213 | D49: 355633 | E49: 199233.09 | F49: 156399.91
A50: Расходы на обеспечение функций органов местного самоуправления в рамках обеспечения деятельности главы администрации | B50: 200 | C50: 001 0104 Г12Г015 000 000 | D50: 32000 | E50: 6400 | F50: 25600
A51: Иные выплаты персоналу государственных (муниципальных) органов, за исключением фонда оплаты труда | B51: 200 | C51: 001 0104 Г12Г015 122 000 | D51: 32000 | E51: 6400 | F51: 25600
A52: Расходы | B52: 200 | C52: 001 0104 Г12Г015 122 200 | D52: 32000 | E52: 6400 | F52: 25600
A53: Оплата труда и начисления на выплаты по оплате труда | B53: 200 | C53: 001 0104 Г12Г015 122 210 | D53: 32000 | E53: 6400 | F53: 25600
A54: Прочие выплаты | B54: 200 | C54: 001 0104 Г12Г015 122 212 | D54: 32000 | E54: 6400 | F54: 25600
A55: Обеспечение деятельности администрации | B55: 200 | C55: 001 0104 Г130000 000 000 | D55: 20236530.08 | E55: 12891162.74 | F55: 7345367.34
A56: Расходы на выплаты по оплате труда работников органов местного самоуправления в рамках обеспечения деятельности администрации | B56: 200 | C56: 001 0104 Г13Г014 000 000 | D56: 19544492 | E56: 12436077.37 | F56: 7108414.63
A57: Фонд оплаты труда государственных (муниципальных) органов и взносы по обязательному социальному страхованию | B57: 200 | C57: 001 0104 Г13Г014 121 000 | D57: 19544492 | E57: 12436077.37 | F57: 7108414.63
A58: Расходы | B58: 200 | C58: 001 0104 Г13Г014 121 200 | D58: 19544492 | E58: 12436077.37 | F58: 7108414.63
A59: Оплата труда и начисления на выплаты по оплате труда | B59: 200 | C59: 001 0104 Г13Г014 121 210 | D59: 19544492 | E59: 12436077.37 | F59: 7108414.63
A60: Заработная плата | B60: 200 | C60: 001 0104 Г13Г014 121 211 | D60: 15011131 | E60: 9670222.21 | F60: 5340908.79
A61: Начисления на выплаты по оплате труда | B61: 200 | C61: 001 0104 Г13Г014 121 213 | D61: 4533361 | E61: 2765855.16 | F61: 1767505.84
A62: Расходы на обеспечение функций органов местного самоуправления в рамках обеспечения деятельности администрации | B62: 200 | C62: 001 0104 Г13Г015 000 000 | D62: 454338.08 | E62: 276810.37 | F62: 177527.71
A63: Иные выплаты персоналу государственных (муниципальных) органов, за исключением фонда оплаты труда | B63: 200 | C63: 001 0104 Г13Г015 122 000 | D63: 110956.35 | E63: 44005.68 | F63: 66950.67
A64: Расходы | B64: 200 | C64: 001 0104 Г13Г015 122 200 | D64: 110956.35 | E64: 44005.68 | F64: 66950.67
A65: Оплата труда и начисления на выплаты по оплате труда | B65: 200 | C65: 001 0104 Г13Г015 122 210 | D65: 30000 | E65: 13959.68 | F65: 16040.32
A66: Прочие выплаты | B66: 200 | C66: 001 0104 Г13Г015 122 212 | D66: 30000 | E66: 13959.68 | F66: 16040.32
A67: Оплата работ, услуг | B67: 200 | C67: 001 0104 Г13Г015 122 220 | D67: 80956.35 | E67: 30046 | F67: 50910.35
A68: Транспортные услуги | B68: 200 | C68: 001 0104 Г13Г015 122 222 | D68: 62956.35 | E68: 25246 | F68: 37710.35
A69: Прочие работы, услуги | B69: 200 | C69: 001 0104 Г13Г015 122 226 | D69: 18000 | E69: 4800 | F69: 13200
A70: Закупка товаров, работ, услуг в сфере информационно-коммуникационных технологий | B70: 200 | C70: 001 0104 Г13Г015 242 000 | D70: 226218 | E70: 135460.64 | F70: 90757.36
A71: Расходы | B71: 200 | C71: 001 0104 Г13Г015 242 200 | D71: 226218 | E71: 135460.64 | F71: 90757.36
A72: Оплата работ, услуг | B72: 200 | C72: 001 0104 Г13Г015 242 220 | D72: 226218 | E72: 135460.64 | F72: 90757.36
A73: Услуги связи | B73: 200 | C73: 001 0104 Г13Г015 242 221 | D73: 78000 | E73: 43350 | F73: 34650
A74: Прочие работы, услуги | B74: 200 | C74: 001 0104 Г13Г015 242 226 | D74: 148218 | E74: 92110.64 | F74: 56107.36
A75: Прочая закупка товаров, работ и услуг для обеспечения государственных (муниципальных) нужд | B75: 200 | C75: 001 0104 Г13Г015 244 000 | D75: 84825.65 | E75: 68185.58 | F75: 16640.07
A76: Расходы | B76: 200 | C76: 001 0104 Г13Г015 244 200 | D76: 84825.65 | E76: 68185.58 | F76: 16640.07
A77: Оплата работ, услуг | B77: 200 | C77: 001 0104 Г13Г015 244 220 | D77: 84825.65 | E77: 68185.58 | F77: 16640.07
A78: Работы, услуги по содержанию имущества | B78: 200 | C78: 001 0104 Г13Г015 244 225 | D78: 20782 | E78: 11541.93 | F78: 9240.07
A79: Прочие работы, услуги | B79: 200 | C79: 001 0104 Г13Г015 244 226 | D79: 64043.65 | E79: 56643.65 | F79: =IF(OR(D79="-",E79=D79),"-",D79-IF(E79="-",0,E79)) -> 7400
A80: Уплата прочих налогов, сборов и иных платежей | B80: 200 | C80: 001 0104 Г13Г015 852 000 | D80: 28527.11 | E80: 27858.47 | F80: 668.64
A81: Расходы | B81: 200 | C81: 001 0104 Г13Г015 852 200 | D81: 28527.11 | E81: 27858.47 | F81: 668.64
A82: Прочие расходы | B82: 200 | C82: 001 0104 Г13Г015 852 290 | D82: 28527.11 | E82: 27858.47 | F82: 668.64
A83: Уплата иных платежей | B83: 200 | C83: 001 0104 Г13Г015 853 000 | D83: 3810.97 | E83: 1300 | F83: 2510.97
A84: Расходы | B84: 200 | C84: 001 0104 Г13Г015 853 200 | D84: 3810.97 | E84: 1300 | F84: 2510.97
A85: Прочие расходы | B85: 200 | C85: 001 0104 Г13Г015 853 290 | D85: 3810.97 | E85: 1300 | F85: 2510.97
A86: Межбюджетные трансферты бюджетам муниципальных районов из бюджетов поселений на исполнение полномочий по осуществлению внешнего муниципального жилищного контроля в рамках непрограммных расходов органов местного самоуправления по вопросам жилищно-коммунального хозяйства | B86: 200 | C86: 001 0104 Г13П704 000 000 | D86: 237700 | E86: 178275 | F86: 59425
A87: Иные межбюджетные трансферты | B87: 200 | C87: 001 0104 Г13П704 540 000 | D87: 237700 | E87: 178275 | F87: 59425
A88: Расходы | B88: 200 | C88: 001 0104 Г13П704 540 200 | D88: 237700 | E88: 178275 | F88: 59425
A89: Безвозмездные перечисления бюджетам | B89: 200 | C89: 001 0104 Г13П704 540 250 | D89: 237700 | E89: 178275 | F89: 59425
A90: Перечисления другим бюджетам бюджетной системы Российской Федерации | B90: 200 | C90: 001 0104 Г13П704 540 251 | D90: 237700 | E90: 178275 | F90: 59425
A91: Резервные фонды | B91: 200 | C91: 001 0111 0000000 000 000 | D91: 258327 | E91: - | F91: 258327
A92: Непрограммные расходы органов местного самоуправления по решению общегосударственных вопросов | B92: 200 | C92: 001 0111 Г210000 000 000 | D92: 223327 | E92: - | F92: 223327
A93: Резервный фонд администрации в рамках непрограммных расходов органов местного самоуправления по решению общегосударственных вопросов | B93: 200 | C93: 001 0111 Г21Г101 000 000 | D93: 223327 | E93: - | F93: 223327
A94: Резервные средства | B94: 200 | C94: 001 0111 Г21Г101 870 000 | D94: 223327 | E94: - | F94: 223327
A95: Расходы | B95: 200 | C95: 001 0111 Г21Г101 870 200 | D95: 223327 | E95: - | F95: 223327
A96: Прочие расходы | B96: 200 | C96: 001 0111 Г21Г101 870 290 | D96: 223327 | E96: - | F96: 223327
A97: Подпрограмма "Предупреждение чрезвычайных ситуаций, защита населения и территорий от чрезвычайных ситуаций природного и техногенного характера, развитие гражданской обороны, обеспечение пожарной безопасности и безопасности на водных объектах" муниципальной программы "Безопасность в МО "Город Пикалево" | B97: 200 | C97: 001 0111 П410000 000 000 | D97: 35000 | E97: - | F97: 35000
A98: Резервный фонд администрации по ликвидации чрезвычайных ситуаций природного и техногенного характера и стихийных бедствий в рамках подпрограммы "Предупреждение чрезвычайных ситуаций, защита населения и территорий от чрезвычайных ситуаций природного и техногенного характера, развитие гражданской обороны, обеспечение пожарной безопасности и безопасности на водных объектах" муниципальной программы "Безопасность в МО "Город Пикалево" | B98: 200 | C98: 001 0111 П41П104 000 000 | D98: 35000 | E98: - | F98: 35000
A99: Резервные средства | B99: 200 | C99: 001 0111 П41П104 870 000 | D99: 35000 | E99: - | F99: 35000
A100: Расходы | B100: 200 | C100: 001 0111 П41П104 870 200 | D100: 35000 | E100: - | F100: 35000
A101: Прочие расходы | B101: 200 | C101: 001 0111 П41П104 870 290 | D101: 35000 | E101: - | F101: 35000
A102: Другие общегосударственные вопросы | B102: 200 | C102: 001 0113 0000000 000 000 | D102: 23787770.19 | E102: 13750971.67 | F102: 10036798.52
A103: Непрограммные расходы органов местного самоуправления по решению общегосударственных вопросов | B103: 200 | C103: 001 0113 Г210000 000 000 | D103: 15834978.19 | E103: 12680485.32 | F103: 3154492.87
A104: Обеспечение деятельности муниципальных казенных учреждений в рамках непрограммных расходов органов местного самоуправления по решению общегосударственных вопросов | B104: 200 | C104: 001 0113 Г21Г016 000 000 | D104: 7484189 | E104: 5028072.44 | F104: 2456116.56
A105: Фонд оплаты труда казенных учреждений и взносы по обязательному социальному страхованию | B105: 200 | C105: 001 0113 Г21Г016 111 000 | D105: 3251915.45 | E105: 2215666.33 | F105: 1036249.12
A106: Расходы | B106: 200 | C106: 001 0113 Г21Г016 111 200 | D106: 3251915.45 | E106: 2215666.33 | F106: 1036249.12
A107: Оплата труда и начисления на выплаты по оплате труда | B107: 200 | C107: 001 0113 Г21Г016 111 210 | D107: 3251915.45 | E107: 2215666.33 | F107: 1036249.12
A108: Заработная плата | B108: 200 | C108: 001 0113 Г21Г016 111 211 | D108: 2497572.64 | E108: 1706356.4 | F108: 791216.24
A109: Начисления на выплаты по оплате труда | B109: 200 | C109: 001 0113 Г21Г016 111 213 | D109: 754342.81 | E109: 509309.93 | F109: 245032.88
A110: Иные выплаты персоналу казенных учреждений, за исключением фонда оплаты труда | B110: 200 | C110: 001 0113 Г21Г016 112 000 | D110: 35700 | E110: 20200 | F110: 15500
A111: Расходы | B111: 200 | C111: 001 0113 Г21Г016 112 200 | D111: 35700 | E111: 20200 | F111: 15500
A112: Оплата труда и начисления на выплаты по оплате труда | B112: 200 | C112: 001 0113 Г21Г016 112 210 | D112: 26400 | E112: 18300 | F112: 8100
A113: Прочие выплаты | B113: 200 | C113: 001 0113 Г21Г016 112 212 | D113: 26400 | E113: 18300 | F113: 8100
A114: Оплата работ, услуг | B114: 200 | C114: 001 0113 Г21Г016 112 220 | D114: 9300 | E114: 1900 | F114: 7400
A115: Прочие работы, услуги | B115: 200 | C115: 001 0113 Г21Г016 112 226 | D115: 9300 | E115: 1900 | F115: 7400
A116: Закупка товаров, работ, услуг в сфере информационно-коммуникационных технологий | B116: 200 | C116: 001 0113 Г21Г016 242 000 | D116: 1010581 | E116: 624838.33 | F116: 385742.67
A117: Расходы | B117: 200 | C117: 001 0113 Г21Г016 242 200 | D117: 592901 | E117: 396728.44 | F117: 196172.56
A118: Оплата работ, услуг | B118: 200 | C118: 001 0113 Г21Г016 242 220 | D118: 592901 | E118: 396728.44 | F118: 196172.56
A119: Услуги связи | B119: 200 | C119: 001 0113 Г21Г016 242 221 | D119: 397728 | E119: 243003.82 | F119: 154724.18
A120: Работы, услуги по содержанию имущества | B120: 200 | C120: 001 0113 Г21Г016 242 225 | D120: 25760 | E120: 3755.08 | F120: 22004.92
A121: Прочие работы, услуги | B121: 200 | C121: 001 0113 Г21Г016 242 226 | D121: 169413 | E121: 149969.54 | F121: 19443.46
A122: Поступление нефинансовых активов | B122: 200 | C122: 001 0113 Г21Г016 242 300 | D122: 417680 | E122: 228109.89 | F122: 189570.11
A123: Увеличение стоимости основных средств | B123: 200 | C123: 001 0113 Г21Г016 242 310 | D123: 121980 | E123: 31945.89 | F123: 90034.11
A124: Увеличение стоимости материальных запасов | B124: 200 | C124: 001 0113 Г21Г016 242 340 | D124: 295700 | E124: 196164 | F124: 99536
A125: Прочая закупка товаров, работ и услуг для обеспечения государственных (муниципальных) нужд | B125: 200 | C125: 001 0113 Г21Г016 244 000 | D125: 3181376.55 | E125: 2164011.58 | F125: 1017364.97
A126: Расходы | B126: 200 | C126: 001 0113 Г21Г016 244 200 | D126: 2290039.55 | E126: 1675905.41 | F126: 614134.14
A127: Оплата работ, услуг | B127: 200 | C127: 001 0113 Г21Г016 244 220 | D127: 2175119.55 | E127: 1614347.41 | F127: 560772.14
A128: Услуги связи | B128: 200 | C128: 001 0113 Г21Г016 244 221 | D128: 48480 | E128: 33063.05 | F128: 15416.95
A129: Коммунальные услуги | B129: 200 | C129: 001 0113 Г21Г016 244 223 | D129: 726746 | E129: 611793.87 | F129: 114952.13
A130: Арендная плата за пользование имуществом | B130: 200 | C130: 001 0113 Г21Г016 244 224 | D130: 81883 | E130: 81833 | F130: 50
A131: Работы, услуги по содержанию имущества | B131: 200 | C131: 001 0113 Г21Г016 244 225 | D131: 684216 | E131: 464086.14 | F131: 220129.86
A132: Прочие работы, услуги | B132: 200 | C132: 001 0113 Г21Г016 244 226 | D132: 633794.55 | E132: 423571.35 | F132: 210223.2
A133: Прочие расходы | B133: 200 | C133: 001 0113 Г21Г016 244 290 | D133: 114920 | E133: 61558 | F133: 53362
A134: Поступление нефинансовых активов | B134: 200 | C134: 001 0113 Г21Г016 244 300 | D134: 891337 | E134: 488106.17 | F134: 403230.83
A135: Увеличение стоимости основных средств | B135: 200 | C135: 001 0113 Г21Г016 244 310 | D135: 48400 | E135: 5279.11 | F135: 43120.89
A136: Увеличение стоимости материальных запасов | B136: 200 | C136: 001 0113 Г21Г016 244 340 | D136: 842937 | E136: 482827.06 | F136: 360109.94
A137: Уплата прочих налогов, сборов и иных платежей | B137: 200 | C137: 001 0113 Г21Г016 852 000 | D137: 3350.86 | E137: 2091.06 | F137: 1259.8
A138: Расходы | B138: 200 | C138: 001 0113 Г21Г016 852 200 | D138: 3350.86 | E138: 2091.06 | F138: 1259.8
A139: Прочие расходы | B139: 200 | C139: 001 0113 Г21Г016 852 290 | D139: 3350.86 | E139: 2091.06 | F139: 1259.8
A140: Уплата иных платежей | B140: 200 | C140: 001 0113 Г21Г016 853 000 | D140: 1265.14 | E140: 1265.14 | F140: -
A141: Расходы | B141: 200 | C141: 001 0113 Г21Г016 853 200 | D141: 1265.14 | E141: 1265.14 | F141: -
A142: Прочие расходы | B142: 200 | C142: 001 0113 Г21Г016 853 290 | D142: 1265.14 | E142: 1265.14 | F142: -
A143: Обеспечение управления активами и приватизации муниципального имущества в рамках непрограммных расходов органов местного самоуправления по решению общегосударственных вопросов | B143: 200 | C143: 001 0113 Г21Г103 000 000 | D143: 549942.89 | E143: 280324.77 | F143: =IF(OR(D143="-",E143=D143),"-",D143-IF(E143="-",0,E143)) -> 269618.12
A144: Прочая закупка товаров, работ и услуг для обеспечения государственных (муниципальных) нужд | B144: 200 | C144: 001 0113 Г21Г103 244 000 | D144: 549942.89 | E144: 280324.77 | F144: 269618.12
A145: Расходы | B145: 200 | C145: 001 0113 Г21Г103 244 200 | D145: 549942.89 | E145: 280324.77 | F145: 269618.12
A146: Оплата работ, услуг | B146: 200 | C146: 001 0113 Г21Г103 244 220 | D146: 549942.89 | E146: 280324.77 | F146: 269618.12
A147: Прочие работы, услуги | B147: 200 | C147: 001 0113 Г21Г103 244 226 | D147: 549942.89 | E147: 280324.77 | F147: 269618.12
A148: Содержание и обслуживание объектов муниципального имущества в рамках непрограммных расходов органов местного самоуправления по решению общегосударственных вопросов | B148: 200 | C148: 001 0113 Г21Г104 000 000 | D148: 7521156.3 | E148: 7273507.11 | F148: 247649.19
A149: Прочая закупка товаров, работ и услуг для обеспечения государственных (муниципальных) нужд | B149: 200 | C149: 001 0113 Г21Г104 244 000 | D149: 7063460 | E149: 6980647.85 | F149: 82812.15
A150: Расходы | B150: 200 | C150: 001 0113 Г21Г104 244 200 | D150: 6297988.28 | E150: 6215176.13 | F150: 82812.15
A151: Оплата работ, услуг | B151: 200 | C151: 001 0113 Г21Г104 244 220 | D151: 6297988.28 | E151: 6215176.13 | F151: 82812.15
A152: Коммунальные услуги | B152: 200 | C152: 001 0113 Г21Г104 244 223 | D152: 20000 | E152: - | F152: 20000
A153: Работы, услуги по содержанию имущества | B153: 200 | C153: 001 0113 Г21Г104 244 225 | D153: 6277988.28 | E153: 6215176.13 | F153: 62812.15
A154: Поступление нефинансовых активов | B154: 200 | C154: 001 0113 Г21Г104 244 300 | D154: 765471.72 | E154: 765471.72 | F154: -
A155: Увеличение стоимости основных средств | B155: 200 | C155: 001 0113 Г21Г104 244 310 | D155: 765471.72 | E155: 765471.72 | F155: -
A156: Субсидии юридическим лицам (кроме некоммерческих организаций), индивидуальным предпринимателям, физическим лицам | B156: 200 | C156: 001 0113 Г21Г104 810 000 | D156: 457696.3 | E156: 292859.26 | F156: 164837.04
A157: Расходы | B157: 200 | C157: 001 0113 Г21Г104 810 200 | D157: 457696.3 | E157: 292859.26 | F157: 164837.04
A158: Безвозмездные перечисления организациям | B158: 200 | C158: 001 0113 Г21Г104 810 240 | D158: 457696.3 | E158: 292859.26 | F158: 164837.04
A159: Безвозмездные перечисления организациям, за исключением государственных и муниципальных организаций | B159: 200 | C159: 001 0113 Г21Г104 810 242 | D159: 457696.3 | E159: 292859.26 | F159: 164837.04
A160: Ежегодный членский взнос в Ассоциацию "Совет муниципальных образований Ленинградской области" в рамках непрограммных расходов органов местного самоуправления по решению общегосударственных вопросов | B160: 200 | C160: 001 0113 Г21Г105 000 000 | D160: 36655 | E160: - | F160: 36655
A161: Уплата иных платежей | B161: 200 | C161: 001 0113 Г21Г105 853 000 | D161: 36655 | E161: - | F161: 36655
A162: Расходы | B162: 200 | C162: 001 0113 Г21Г105 853 200 | D162: 36655 | E162: - | F162: 36655
A163: Прочие расходы | B163: 200 | C163: 001 0113 Г21Г105 853 290 | D163: 36655 | E163: - | F163: 36655
A164: Ежегодный членский взнос в Союз малых городов Российской Федерации в рамках непрограммных расходов органов местного самоуправления по решению общегосударственных вопросов | B164: 200 | C164: 001 0113 Г21Г106 000 000 | D164: 21525 | E164: - | F164: 21525
A165: Уплата иных платежей | B165: 200 | C165: 001 0113 Г21Г106 853 000 | D165: 21525 | E165: - | F165: 21525
A166: Расходы | B166: 200 | C166: 001 0113 Г21Г106 853 200 | D166: 21525 | E166: - | F166: 21525
A167: Прочие расходы | B167: 200 | C167: 001 0113 Г21Г106 853 290 | D167: 21525 | E167: - | F167: 21525
A168: Обеспечение органов местного самоуправления статистической информацией в рамках непрограммных расходов органов местного самоуправления по решению общегосударственных вопросов | B168: 200 | C168: 001 0113 Г21Г107 000 000 | D168: 83000 | E168: 44071 | F168: 38929
A169: Прочая закупка товаров, работ и услуг для обеспечения государственных (муниципальных) нужд | B169: 200 | C169: 001 0113 Г21Г107 244 000 | D169: 83000 | E169: 44071 | F169: 38929
A170: Расходы | B170: 200 | C170: 001 0113 Г21Г107 244 200 | D170: 83000 | E170: 44071 | F170: 38929
A171: Оплата работ, услуг | B171: 200 | C171: 001 0113 Г21Г107 244 220 | D171: 83000 | E171: 44071 | F171: 38929
A172: Прочие работы, услуги | B172: 200 | C172: 001 0113 Г21Г107 244 226 | D172: 83000 | E172: 44071 | F172: 38929
A173: Мероприятия по диспансеризации лиц, замещающих муниципальные должности и должности муниципальных служащих в рамках непрограммных расходов органов местного самоуправления по решению общегосударственных вопросов | B173: 200 | C173: 001 0113 Г21Г108 000 000 | D173: 84000 | E173: - | F173: 84000
A174: Прочая закупка товаров, работ и услуг для обеспечения государственных (муниципальных) нужд | B174: 200 | C174: 001 0113 Г21Г108 244 000 | D174: 84000 | E174: - | F174: 84000
A175: Расходы | B175: 200 | C175: 001 0113 Г21Г108 244 200 | D175: 84000 | E175: - | F175: 84000
A176: Оплата работ, услуг | B176: 200 | C176: 001 0113 Г21Г108 244 220 | D176: 84000 | E176: - | F176: 84000
A177: Прочие работы, услуги | B177: 200 | C177: 001 0113 Г21Г108 244 226 | D177: 84000 | E177: - | F177: 84000
A178: Исполнение судебных актов, вступивших в законную силу, по искам к МО "Город Пикалево" в рамках непрограммных расходов органов местного самоуправления по решению общегосударственных вопросов | B178: 200 | C178: 001 0113 Г21Г109 000 000 | D178: 54510 | E178: 54510 | F178: -
A179: Исполнение судебных актов Российской Федерации и мировых соглашений по возмещению вреда, причиненного в результате незаконных действий (бездействия) органов государственной власти (государственных органов), органов местного самоуправления либо должностных лиц этих органов, а также в результате деятельности казенных учреждений | B179: 200 | C179: 001 0113 Г21Г109 831 000 | D179: 54510 | E179: 54510 | F179: -
A180: Расходы | B180: 200 | C180: 001 0113 Г21Г109 831 200 | D180: 54510 | E180: 54510 | F180: -
A181: Прочие расходы | B181: 200 | C181: 001 0113 Г21Г109 831 290 | D181: 54510 | E181: 54510 | F181: -
A182: Подпрограмма "Обеспечение правопорядка и профилактика правонарушений" муниципальной программы "Безопасность в МО "Город Пикалево" | B182: 200 | C182: 001 0113 П420000 000 000 | D182: 7543200 | E182: 914373.55 | F182: 6628826.45
A183: Создание в МО "Город Пикалево" аппаратно-программного комплекса автоматизированной информационной системы "Безопасный город" за счет средств областного бюджета в рамках подпрограммы "Обеспечение правопорядка и профилактика правонарушений" муниципальной программы "Безопасность в МО "Город Пикалево" | B183: 200 | C183: 001 0113 П427043 000 000 | D183: 5700000 | E183: - | F183: 5700000
A184: Прочая закупка товаров, работ и услуг для обеспечения государственных (муниципальных) нужд | B184: 200 | C184: 001 0113 П427043 244 000 | D184: 5700000 | E184: - | F184: 5700000
A185: Расходы | B185: 200 | C185: 001 0113 П427043 244 200 | D185: 3505370 | E185: - | F185: 3505370
A186: Оплата работ, услуг | B186: 200 | C186: 001 0113 П427043 244 220 | D186: 3505370 | E186: - | F186: 3505370
A187: Прочие работы, услуги | B187: 200 | C187: 001 0113 П427043 244 226 | D187: 3505370 | E187: - | F187: 3505370
A188: Поступление нефинансовых активов | B188: 200 | C188: 001 0113 П427043 244 300 | D188: 2194630 | E188: - | F188: 2194630
A189: Увеличение стоимости основных средств | B189: 200 | C189: 001 0113 П427043 244 310 | D189: 2194630 | E189: - | F189: 2194630
A190: Профилактика безнадзорности и правонарушений несовершеннолетних за счет средств субвенции областного бюджета в рамках подпрограммы "Обеспечение правопорядка и профилактика правонарушений" государственной программы Ленинградской области "Безопасность Ленинградской области" в рамках подпрограммы "Обеспечение правопорядка и профилактика правонарушений" муниципальной программы "Безопасность в МО "Город Пикалево" | B190: 200 | C190: 001 0113 П427133 000 000 | D190: 555100 | E190: 391025.1 | F190: 164074.9
A191: Фонд оплаты труда государственных (муниципальных) органов и взносы по обязательному социальному страхованию | B191: 200 | C191: 001 0113 П427133 121 000 | D191: 529872 | E191: 374317.09 | F191: 155554.91
A192: Расходы | B192: 200 | C192: 001 0113 П427133 121 200 | D192: 529872 | E192: 374317.09 | F192: 155554.91
A193: Оплата труда и начисления на выплаты по оплате труда | B193: 200 | C193: 001 0113 П427133 121 210 | D193: 529872 | E193: 374317.09 | F193: 155554.91
A194: Заработная плата | B194: 200 | C194: 001 0113 П427133 121 211 | D194: 406968 | E194: 297088.48 | F194: 109879.52
A195: Начисления на выплаты по оплате труда | B195: 200 | C195: 001 0113 П427133 121 213 | D195: 122904 | E195: 77228.61 | F195: 45675.39
A196: Иные выплаты персоналу государственных (муниципальных) органов, за исключением фонда оплаты труда | B196: 200 | C196: 001 0113 П427133 122 000 | D196: 800 | E196: 200 | F196: 600
A197: Расходы | B197: 200 | C197: 001 0113 П427133 122 200 | D197: 800 | E197: 200 | F197: 600
A198: Оплата труда и начисления на выплаты по оплате труда | B198: 200 | C198: 001 0113 П427133 122 210 | D198: 800 | E198: 200 | F198: 600
A199: Прочие выплаты | B199: 200 | C199: 001 0113 П427133 122 212 | D199: 800 | E199: 200 | F199: 600
A200: Закупка товаров, работ, услуг в сфере информационно-коммуникационных технологий | B200: 200 | C200: 001 0113 П427133 242 000 | D200: 16995 | E200: 10429.54 | F200: 6565.46
A201: Расходы | B201: 200 | C201: 001 0113 П427133 242 200 | D201: 12195 | E201: 8029.54 | F201: 4165.46
A202: Оплата работ, услуг | B202: 200 | C202: 001 0113 П427133 242 220 | D202: 12195 | E202: 8029.54 | F202: 4165.46
A203: Услуги связи | B203: 200 | C203: 001 0113 П427133 242 221 | D203: 12195 | E203: 8029.54 | F203: 4165.46
A204: Поступление нефинансовых активов | B204: 200 | C204: 001 0113 П427133 242 300 | D204: 4800 | E204: 2400 | F204: 2400
A205: Увеличение стоимости материальных запасов | B205: 200 | C205: 001 0113 П427133 242 340 | D205: 4800 | E205: 2400 | F205: 2400
A206: Прочая закупка товаров, работ и услуг для обеспечения государственных (муниципальных) нужд | B206: 200 | C206: 001 0113 П427133 244 000 | D206: 7433 | E206: 6078.47 | F206: 1354.53
A207: Расходы | B207: 200 | C207: 001 0113 П427133 244 200 | D207: 6400 | E207: 6078.47 | F207: =IF(OR(D207="-",E207=D207),"-",D207-IF(E207="-",0,E207)) -> 321.53
A208: Оплата работ, услуг | B208: 200 | C208: 001 0113 П427133 244 220 | D208: 6400 | E208: 6078.47 | F208: 321.53
A209: Услуги связи | B209: 200 | C209: 001 0113 П427133 244 221 | D209: 6400 | E209: 6078.47 | F209: 321.53
... 422 more rows

Sheet ExportParams (hidden)
A1: EXPORT_SRC_KIND | B1: ПосОБР
A2: EXPORT_PARAM_SRC_KIND | B2: 3
A3: EXPORT_SRC_CODE | B3: 45012
A4: EXPORT_VB_CODE | B4: 3

Sheet Источники
A1: Форма 0503117 с.3
A2: 3. Источники финансирования дефицита бюджета
A4: Наименование показателя | B4: Код строки | C4: Код источника финансирования дефицита бюджета по бюджетной классификации | D4: Утвержденные бюджетные назначения | E4: Исполнено | F4: Неисполненные назначения
A6: 1 | B6: 2 | C6: 3 | D6: 4 | E6: 5 | F6: 6
A7: Источники финансирования дефицита бюджета - всего | B7: 500 | C7: *** 90000000000000 000 | D7: 62235882.25 | E7: -1164326.33 | F7: =SUM(D7-E7) -> 63400208.58
A8: в том числе:
A9: источники внутреннего финансирования бюджета | B9: 520 | C9: *** 01000000000000 000 | D9: 4361314 | E9: 1172000 | F9: =SUM(D9-E9) -> 3189314
A10: из них:
A11: Кредиты кредитных организаций в валюте Российской Федерации | B11: 520 | C11: 000 01020000000000 000 | D11: 4525600 | E11: - | F11: =SUM(D11:E11) -> 4525600
A12: Получение кредитов от кредитных организаций в валюте Российской Федерации | B12: 520 | C12: 000 01020000000000 700 | D12: 10000000 | E12: - | F12: 10000000
A13: Получение кредитов от кредитных организаций бюджетами городских поселений в валюте Российской Федерации | B13: 520 | C13: 000 01020000130000 710 | D13: 10000000 | E13: - | F13: 10000000
A14: Погашение кредитов, предоставленных кредитными организациями в валюте Российской Федерации | B14: 520 | C14: 000 01020000000000 800 | D14: -5474400 | E14: - | F14: -5474400
A15: Погашение бюджетами городских поселений кредитов от кредитных организаций в валюте Российской Федерации | B15: 520 | C15: 000 01020000130000 810 | D15: -5474400 | E15: - | F15: -5474400
A16: Бюджетные кредиты от других бюджетов бюджетной системы Российской Федерации | B16: 520 | C16: 000 01030000000000 000 | D16: -3534286 | E16: - | F16: -3534286
A17: Бюджетные кредиты от других бюджетов бюджетной системы Российской Федерации в валюте Российской Федерации | B17: 520 | C17: 000 01030100000000 000 | D17: -3534286 | E17: - | F17: -3534286
A18: Погашение бюджетых кредитов, полученных от других бюджетов бюджетной системы Российской Федерации в валюте Российской Федерации | B18: 520 | C18: 000 01030100000000 800 | D18: -3534286 | E18: - | F18: -3534286
A19: Погашение бюджетами городских поселений кредитов от других бюджетов бюджетной системы Российской Федерации в валюте Российской Федерации | B19: 520 | C19: 000 01030100130000 810 | D19: -3534286 | E19: - | F19: -3534286
A20: Иные источники внутреннего финансирования дефицита бюджета | B20: 520 | C20: 000 01060000000000 000 | D20: 3370000 | E20: 1172000 | F20: =SUM(D20)-E20 -> 2198000
A21: Акции и иные формы участия в капитале, находящихся в государственной и муниципальной собственности | B21: 520 | C21: 000 01060100000000 000 | D21: 970000 | E21: 197000 | F21: =SUM(D21)-E21 -> 773000
A22: Средства от продажи акций и иных форм участия в капитале, находящихся в государственной и муниципальной собственности | B22: 520 | C22: 000 01060100000000 630 | D22: 970000 | E22: 197000 | F22: =SUM(D22)-E22 -> 773000
A23: Средства от продажи акций и иных форм участия в капитале, находящихся в собственности городских поселений | B23: 520 | C23: 000 01060100130000 630 | D23: 970000 | E23: 197000 | F23: =SUM(D23)-E23 -> 773000
A24: Исполнение государственных и муниципальных гарантий | B24: 520 | C24: 000 01060400000000 000 | D24: -7779403 | E24: - | F24: -7779403
A25: Исполнение государственных и муниципальных гарантий в валюте Российской Федерации | B25: 520 | C25: 000 01060401000000 000 | D25: -7779403 | E25: - | F25: -7779403
A26: Исполнение государственных и муниципальных гарантий в валюте Российской Федерации в случае, если исполнение гарантом муниципальных гарантий ведет к возникновению права регрессного требования гаранта к принципалу либо обусловлено уступкой гаранту прав требования бенефициара к принципалу | B26: 520 | C26: 000 01060401000000 800 | D26: -7779403 | E26: - | F26: -7779403
A27: Исполнение муниципальных гарантий городских поселений в валюте Российской Федерации в случае, если исполнение гарантом муниципальных гарантий ведет к возникновению права регрессного требования гаранта к принципалу либо обусловлено уступкой гаранту прав требования бенефициара к принципалу | B27: 520 | C27: 000 01060401130000 810 | D27: -7779403 | E27: - | F27: -7779403
A28: Прочие бюджетные кредиты (ссуды), предоставленные внутри страны | B28: 520 | C28: 000 01060800000000 000 | D28: 10179403 | E28: 975000 | F28: =SUM(D28)-E28 -> 9204403
A29: Возврат прочих бюджетных кредитов (ссуд), предоставленные внутри страны | B29: 520 | C29: 000 01060800000000 600 | D29: 10179403 | E29: 975000 | F29: =SUM(D29)-E29 -> 9204403
A30: Возврат прочих бюджетных кредитов (ссуд), предоставленных бюджетами городских поселений внутри страны | B30: 520 | C30: 000 01060800130000 640 | D30: 10179403 | E30: 975000 | F30: =SUM(D30)-E30 -> 9204403
A31: Изменение остатков средств | B31: 700 | C31: *** 01000000000000 000 | D31: 57874568.25 | E31: -2336326.33 | F31: =SUM(D31-E31) -> 60210894.58
A32: Изменение остатков средств на счетах по учету средств бюджета | B32: 700 | C32: *** 01050000000000 000 | D32: 57874568.25 | E32: -2336326.33 | F32: =SUM(D32-E32) -> 60210894.58
A33: увеличение остатков средств бюджетов | B33: 710 | C33: 000 01050000000000 500 | D33: -266987116 | E33: -208815914.9 | F33: x
A34: увеличение прочих остатков средств бюджетов | B34: 710 | C34: 000 01050200000000 500 | D34: -266987116 | E34: -208815914.9 | F34: x
A35: увеличение прочих остатков денежных средств бюджетов | B35: 710 | C35: 000 01050201000000 510 | D35: -266987116 | E35: -208815914.9 | F35: x
A36: Увеличение прочих остатков денежных средств бюджетов городских поселений | B36: 710 | C36: 000 01050201130000 510 | D36: -266987116 | E36: -208815914.9 | F36: x
A37: уменьшение остатков средств бюджетов | B37: 720 | C37: 000 01050000000000 600 | D37: 324861684.2 | E37: 206479588.6 | F37: x
A38: уменьшение прочих остатков средств бюджетов | B38: 720 | C38: 000 01050200000000 600 | D38: 324861684.2 | E38: 206479588.6 | F38: x
A39: уменьшение прочих остатков денежных средств бюджетов | B39: 720 | C39: 000 01050201000000 610 | D39: 324861684.2 | E39: 206479588.6 | F39: x
A40: Уменьшение прочих остатков денежных средств бюджетов городских поселений | B40: 720 | C40: 000 01050201130000 610 | D40: 324861684.2 | E40: 206479588.6 | F40: x
A43: Заместитель главы администрации | D43: Е.А. Соловьева
A46: Заведующий отделом финансов | D46: И.Ю. Жолудева
A48: 02 октября 2015 года
